bitfinex-derivatives/quotes_BTCF0:USTF0_20241213
["timestamp","ask_amount","ask_price","bid_price","bid_amount"]
[1734083700810,0.48012903,100190.0,100180.0,1.53040128]
[1734083700811,0.15069471,100190.0,100180.0,1.53040128]
[1734083701118,0.12073103,100190.0,100180.0,1.23105147]
[1734083701320,0.21052424,100190.0,100180.0,1.23105147]
[1734083701824,0.21052424,100190.0,100180.0,1.53021734]
[1734083702324,0.26042624,100190.0,100180.0,1.53021734]
[1734083702524,0.26042624,100190.0,100180.0,1.52838202]
[1734083703516,0.21052424,100190.0,100180.0,1.52838202]
[1734083703718,0.09079321,100190.0,100180.0,1.52921615]
[1734083704123,0.09079321,100190.0,100180.0,1.88669647]
[1734083704313,0.09079321,100190.0,100180.0,2.27289647]
[1734083704629,0.09079321,100190.0,100180.0,1.91541615]
[1734083706420,0.09079321,100190.0,100180.0,2.57513438]
[1734083707113,0.09079321,100190.0,100180.0,2.28379592]
[1734083707422,0.001,100190.0,100180.0,2.94060029]
[1734083708419,0.001,100190.0,100180.0,2.58375154]
[1734083708932,0.11399015,100190.0,100180.0,2.15757524]
[1734083709230,0.14069521,100190.0,100180.0,1.50064362]
[1734083709421,0.14069521,100190.0,100180.0,1.73972078]
[1734083709928,0.14069521,100190.0,100180.0,1.79835547]
[1734083710224,0.14069521,100190.0,100180.0,1.11444362]
[1734083711324,0.14069521,100190.0,100180.0,1.11467082]
[1734083713529,0.14069521,100190.0,100180.0,1.35373934]
[1734083713726,0.14069521,100190.0,100180.0,1.11467082]
[1734083714126,0.14069521,100190.0,100180.0,1.35373934]
[1734083715018,0.20378336,100190.0,100180.0,0.83988704]
[1734083715325,0.93941938,100190.0,100180.0,0.41938592]
[1734083715529,0.97251938,100190.0,100180.0,0.18031301]
[1734083715727,0.96941718,100190.0,100180.0,0.001]
[1734083716025,0.7897002,100190.0,100180.0,0.18031301]
[1734083716421,0.85278835,100190.0,100180.0,0.18031301]
[1734083716821,0.86165033,100190.0,100180.0,0.18031301]
[1734083717922,0.79856218,100190.0,100180.0,0.18031301]
[1734083718431,0.79856218,100190.0,100180.0,0.001]
[1734083718817,0.86165033,100190.0,100180.0,0.001]
[1734083719825,0.79856218,100190.0,100180.0,0.001]
[1734083721132,0.97827916,100190.0,100180.0,0.001]
[1734083721525,0.79856218,100190.0,100180.0,0.001]
[1734083721727,0.43776218,100190.0,100180.0,0.001]
[1734083721928,0.79856218,100190.0,100180.0,0.001]
[1734083723534,0.97827916,100190.0,100180.0,0.001]
[1734083723732,0.79856218,100190.0,100180.0,0.001]
[1734083726033,0.55714455,100190.0,100180.0,0.18031301]
[1734083729435,0.40079574,100190.0,100180.0,0.71719631]
[1734083729633,0.20991642,100190.0,100180.0,0.71719631]
[1734083729839,0.09053405,100190.0,100180.0,0.92508107]
[1734083730034,0.09053405,100190.0,100180.0,0.74576806]
[1734083730336,0.14043605,100190.0,100180.0,0.74576806]
[1734083731437,0.14043605,100190.0,100180.0,1.04464191]
[1734083731637,0.14043605,100190.0,100180.0,0.92496449]
[1734083733734,0.14043605,100190.0,100180.0,0.92498001]
[1734083734036,0.14043605,100190.0,100180.0,0.74576806]
[1734083734438,0.2035242,100190.0,100180.0,0.74576806]
[1734083734641,0.32290657,100190.0,100180.0,0.45119798]
[1734083734826,0.32292368,100190.0,100180.0,0.45119798]
[1734083735336,1.82292368,100190.0,100180.0,0.45119798]
[1734083735740,1.82293146,100190.0,100180.0,0.45119798]
[1734083736435,1.73337252,100190.0,100180.0,0.45119798]
[1734083737043,1.82294483,100190.0,100180.0,0.45119798]
[1734083738632,1.73337252,100190.0,100180.0,0.45119798]
[1734083739034,1.82295993,100190.0,100180.0,0.45119798]
[1734083740139,1.73337252,100190.0,100180.0,0.45119798]
[1734083740340,0.32296403,100190.0,100180.0,0.45119798]
[1734083740542,0.23337252,100190.0,100180.0,0.51428613]
[1734083741754,0.38306723,100190.0,100180.0,0.51428613]
[1734083743049,0.38306723,100190.0,100180.0,0.45119798]
[1734083744857,0.3635002,100190.0,100180.0,0.45119798]
[1734083745763,0.90401718,100190.0,100180.0,0.21212507]
[1734083745954,0.7243002,100190.0,100180.0,0.21212507]
[1734083746950,0.90401718,100190.0,100180.0,0.21212507]
[1734083747362,0.3635002,100190.0,100180.0,0.45119798]
[1734083749160,0.7243002,100190.0,100180.0,0.45119798]
[1734083749555,0.3635002,100190.0,100180.0,0.45119798]
[1734083749761,0.7243002,100190.0,100180.0,0.45119798]
[1734083750253,0.3635002,100190.0,100180.0,0.45119798]
[1734083750458,0.7243002,100190.0,100180.0,0.45119798]
[1734083751566,0.54321718,100190.0,100180.0,0.45119798]
[1734083753556,0.90401718,100190.0,100180.0,0.45119798]
[1734083754356,0.78738835,100190.0,100180.0,0.41929798]
[1734083754553,0.88091062,100190.0,100180.0,0.18022507]
[1734083754768,0.70119364,100190.0,100180.0,0.001]
[1734083757460,0.88037627,100190.0,100180.0,0.001]
[1734083757657,0.81728812,100190.0,100180.0,0.001]
[1734083758768,1.24117627,100190.0,100180.0,0.001]
[1734083758972,1.17808812,100190.0,100180.0,0.001]
[1734083759560,1.24117627,100190.0,100180.0,0.001]
[1734083760658,1.08389997,100190.0,100180.0,0.001]
[1734083760860,0.96780549,100190.0,100180.0,0.001]
[1734083761565,1.29623737,100190.0,100180.0,0.001]
[1734083763570,1.29625533,100190.0,100180.0,0.001]
[1734083763773,1.083862,100190.0,100180.0,0.001]
[1734083763977,1.14695015,100190.0,100180.0,0.001]
[1734083764275,1.2100383,100190.0,100180.0,0.001]
[1734083764471,1.2428383,100190.0,100180.0,0.001]
[1734083768571,0.8820383,100190.0,100180.0,0.001]
[1734083770869,0.70289364,100190.0,100180.0,0.001]
[1734083772273,2.20289364,100190.0,100180.0,0.001]
[1734083773273,2.56369364,100190.0,100180.0,0.001]
[1734083776479,1.06369364,100190.0,100180.0,0.001]
[1734083777479,1.27269575,100190.0,100180.0,0.001]
[1734083777874,1.06369364,100190.0,100180.0,0.001]
[1734083778268,0.1760883,100170.0,100160.0,0.4797468]
[1734083778476,0.62320975,100170.0,100160.0,0.4797468]
[1734083778871,0.72302509,100170.0,100160.0,0.4797468]
[1734083779180,0.90231661,100170.0,100160.0,0.2405772]
[1734083780677,0.72302509,100170.0,100160.0,0.2425772]
[1734083781380,0.90231661,100170.0,100160.0,0.2455772]
[1734083781779,0.72302509,100170.0,100160.0,0.2455772]
[1734083782182,0.90231661,100170.0,100160.0,0.2455772]
[1734083782381,0.72302509,100170.0,100160.0,0.2455772]
[1734083783071,0.90231661,100170.0,100160.0,0.0662]
[1734083783277,0.90231661,100170.0,100160.0,0.2455772]
[1734083783475,0.90231661,100170.0,100160.0,0.0662]
[1734083783672,0.72302509,100170.0,100160.0,0.2455772]
[1734083783973,0.90231661,100170.0,100160.0,0.2455772]
[1734083784381,0.91121362,100170.0,100160.0,0.2455772]
[1734083786480,0.91121362,100170.0,100160.0,0.0662]
[1734083787891,0.7319221,100170.0,100160.0,0.0662]
[1734083788681,0.7319221,100170.0,100160.0,0.2455772]
[1734083792680,0.7319221,100170.0,100160.0,0.0662]
[1734083793493,0.91121362,100170.0,100160.0,0.0662]
[1734083793680,0.7319221,100170.0,100160.0,0.2455772]
[1734083794493,0.75198037,100170.0,100160.0,0.2455772]
[1734083794991,0.68889222,100170.0,100160.0,0.2455772]
[1734083795194,0.75198037,100170.0,100160.0,0.2455772]
[1734083795597,0.75298037,100170.0,100160.0,0.2405772]
[1734083795797,0.75398037,100170.0,100160.0,0.2415772]
[1734083796595,0.69089222,100170.0,100160.0,0.2415772]
[1734083796896,0.93327189,100170.0,100160.0,0.2415772]
[1734083797493,0.87018374,100170.0,100160.0,0.2415772]
[1734083797697,0.93327189,100170.0,100160.0,0.2415772]
[1734083800194,0.91321362,100170.0,100160.0,0.2415772]
[1734083800587,0.76380402,100170.0,100160.0,0.2415772]
[1734083800986,0.76380402,100170.0,100160.0,0.4807468]
[1734083804294,0.78360262,100170.0,100160.0,0.4807468]
[1734083805590,0.93317105,100170.0,100160.0,0.3512866]
[1734083814799,0.93317105,100170.0,100160.0,0.53094331]
[1734083817001,0.8700829,100170.0,100160.0,0.53094331]
[1734083817203,0.93317105,100170.0,100160.0,0.53094331]
[1734083817508,0.93317105,100170.0,100160.0,0.3512866]
[1734083817909,0.93317105,100170.0,100160.0,0.53093675]
[1734083818712,0.93317105,100170.0,100160.0,0.3512866]
[1734083818901,0.57237105,100170.0,100160.0,0.3512866]
[1734083819100,0.93317105,100170.0,100160.0,0.3512866]
[1734083822904,0.93317105,100170.0,100160.0,0.53093393]
[1734083823698,0.93317105,100170.0,100160.0,0.3512866]
[1734083823916,0.57237105,100170.0,100160.0,0.3512866]
[1734083824412,0.93317105,100170.0,100160.0,0.3512866]
[1734083828708,0.39307953,100170.0,100160.0,1.31555542]
[1734083830114,0.39307953,100170.0,100160.0,1.01104861]
[1734083830306,0.39307953,100170.0,100160.0,1.31514161]
[1734083831217,0.39307953,100170.0,100160.0,0.2401696]
[1734083831218,0.93317105,100170.0,100160.0,0.2401696]
[1734083831515,0.96327105,100170.0,100160.0,0.2401696]
[1734083831719,0.81370262,100170.0,100160.0,0.41983545]
[1734083832116,0.81370262,100170.0,100160.0,0.2401696]
[1734083835215,0.45290262,100170.0,100160.0,0.2401696]
[1734083835415,0.81370262,100170.0,100160.0,0.2401696]
[1734083835820,0.87679077,100170.0,100160.0,0.41985346]
[1734083836021,0.69749925,100170.0,100160.0,0.41985346]
[1734083836325,0.6675111,100170.0,100160.0,0.18068386]
[1734083836512,2.1675111,100170.0,100160.0,0.18068386]
[1734083838322,2.34712731,100170.0,100160.0,0.18068386]
[1734083839123,2.41021546,100170.0,100160.0,0.18068386]
[1734083840213,2.34712731,100170.0,100160.0,0.18068386]
[1734083841119,2.41021546,100170.0,100160.0,0.18068386]
[1734083844522,2.34712731,100170.0,100160.0,0.18068386]
[1734083844929,2.41021546,100170.0,100160.0,0.18068386]
[1734083845226,2.41021546,100170.0,100160.0,0.001]
[1734083847416,2.41021546,100170.0,100160.0,0.18068386]
[1734083847722,2.41021546,100170.0,100160.0,0.001]
[1734083850627,2.41143733,100170.0,100160.0,0.001]
[1734083851530,2.41143733,100170.0,100160.0,0.18068386]
[1734083851716,2.41143733,100170.0,100160.0,0.001]
[1734083853826,2.41143733,100170.0,100160.0,0.18068386]
[1734083855129,2.41143733,100170.0,100160.0,0.001]
[1734083855432,2.41143733,100170.0,100160.0,0.18068386]
[1734083858935,2.41143733,100170.0,100160.0,0.001]
[1734083859130,2.23182112,100170.0,100160.0,0.001]
[1734083860029,2.41140857,100170.0,100160.0,0.001]
[1734083860230,2.23182112,100170.0,100160.0,0.18068386]
[1734083864028,2.44082323,100170.0,100160.0,0.18068386]
[1734083864225,2.44082323,100170.0,100160.0,0.001]
[1734083869736,2.31464693,100170.0,100160.0,0.001]
[1734083870039,2.44082323,100170.0,100160.0,0.001]
[1734083875466,2.80162323,100170.0,100160.0,0.001]
[1734083880757,2.59262112,100170.0,100160.0,0.001]
[1734083881063,2.80162323,100170.0,100160.0,0.001]
[1734083881966,2.59262112,100170.0,100160.0,0.001]
[1734083883270,2.46644482,100170.0,100160.0,0.001]
[1734083883462,2.59262112,100170.0,100160.0,0.001]
[1734083888362,2.80162323,100170.0,100160.0,0.001]
[1734083888563,2.59262112,100170.0,100160.0,0.001]
[1734083889765,1.87102112,100170.0,100160.0,0.001]
[1734083889966,2.59262112,100170.0,100160.0,0.001]
[1734083890873,1.87102112,100170.0,100160.0,0.001]
[1734083891173,2.59262112,100170.0,100160.0,0.001]
[1734083891374,2.08002323,100170.0,100160.0,0.001]
[1734083891563,2.59262112,100170.0,100160.0,0.001]
[1734083891763,1.87102112,100170.0,100160.0,0.001]
[1734083891969,2.80162323,100170.0,100160.0,0.001]
[1734083895672,0.90324482,100170.0,100160.0,0.24377201]
[1734083895876,0.44132752,100170.0,100160.0,0.44547475]
[1734083896072,0.44132752,100170.0,100160.0,1.04705065]
[1734083896273,0.28152633,100170.0,100160.0,1.04705065]
[1734083896677,0.28152633,100170.0,100160.0,1.34705065]
[1734083897082,0.34461448,100170.0,100160.0,1.04705065]
[1734083897368,0.2846172,100170.0,100160.0,0.68134861]
[1734083897872,0.2846172,100170.0,100160.0,0.74443676]
[1734083898275,0.2846172,100170.0,100160.0,0.62463212]
[1734083898477,0.3345292,100170.0,100160.0,0.62463212]
[1734083900473,0.3345292,100170.0,100160.0,0.56154397]
[1734083901075,0.75532648,100170.0,100160.0,0.27245737]
[1734083901279,0.85516175,100170.0,100160.0,0.0933]
[1734083901579,0.73547461,100170.0,100160.0,0.0933]
[1734083901780,0.9151476,100170.0,100160.0,0.0933]
[1734083901981,0.73547461,100170.0,100160.0,0.0933]
[1734083903974,0.9151476,100170.0,100160.0,0.0632]
[1734083904182,0.97823575,100170.0,100160.0,0.0632]
[1734083904386,0.9151476,100170.0,100160.0,0.0632]
[1734083907389,0.85205945,100170.0,100160.0,0.0632]
[1734083907689,0.9151476,100170.0,100160.0,0.0632]
[1734083908589,0.5543476,100170.0,100160.0,0.0632]
[1734083908891,0.9151476,100170.0,100160.0,0.0632]
[1734083909288,0.43112326,100170.0,100160.0,0.30544552]
[1734083909795,0.36215707,100170.0,100160.0,0.59453212]
[1734083910992,0.42524522,100170.0,100160.0,0.59453212]
[1734083913797,0.32540995,100170.0,100160.0,0.59453212]
[1734083914682,0.32540995,100170.0,100160.0,0.53144397]
[1734083915295,0.32540995,100170.0,100160.0,0.54072395]
[1734083921004,0.2623218,100170.0,100160.0,0.78545473]
[1734083921196,0.2623218,100170.0,100160.0,0.96452988]
[1734083921602,0.142785,100170.0,100160.0,1.38346003]
[1734083922197,0.20587315,100170.0,100160.0,1.383345]
[1734083922500,0.142785,100170.0,100160.0,1.383345]
[1734083923287,0.2623218,100170.0,100160.0,1.383345]
[1734083927405,0.2124098,100170.0,100160.0,1.383345]
[1734083927602,0.2124098,100170.0,100160.0,1.44643315]
[1734083927807,0.2124098,100170.0,100160.0,1.383345]
[1734083928104,0.2124098,100170.0,100160.0,1.38293956]
[1734083929798,0.2124098,100170.0,100160.0,1.76913956]
[1734083930708,0.27549795,100170.0,100160.0,1.70605141]
[1734083931203,0.27549795,100170.0,100160.0,1.34525141]
[1734083931503,0.23575882,100170.0,100160.0,0.91766463]
[1734083931804,0.4853144,100170.0,100160.0,0.88596278]
[1734083932106,0.7878776,100170.0,100160.0,0.56637618]
[1734083932305,1.03063874,100170.0,100160.0,0.56637618]
[1734083932499,0.88091843,100170.0,100160.0,0.3872]
[1734083932809,0.88091843,100170.0,100160.0,0.001]
[1734083933100,0.88091843,100170.0,100140.0,0.44874578]
[1734083933101,0.049922,100150.0,100140.0,0.44874578]
[1734083933304,0.049922,100150.0,100140.0,0.17917618]
[1734083933305,0.74301244,100150.0,100140.0,0.17917618]
[1734083933512,0.80283517,100150.0,100130.0,0.59520445]
[1734083933700,0.27362589,100140.0,100130.0,0.59520445]
[1734083933901,0.27362589,100140.0,100130.0,0.6582926]
[1734083935107,0.27362589,100140.0,100130.0,0.6652926]
[1734083935303,0.15401682,100140.0,100130.0,0.6652926]
[1734083935517,0.15401682,100140.0,100130.0,0.6692926]
[1734083937004,0.20394382,100140.0,100130.0,0.6692926]
[1734083937213,0.20394382,100140.0,100130.0,0.430123]
[1734083938314,0.11423702,100140.0,100130.0,0.430123]
[1734083941109,0.20394382,100140.0,100130.0,0.430123]
[1734083942608,0.11423702,100140.0,100130.0,0.430123]
[1734083942811,0.20394382,100140.0,100130.0,0.430123]
[1734083943712,0.11423702,100140.0,100130.0,0.430123]
[1734083944913,0.20394382,100140.0,100130.0,0.430123]
[1734083946207,0.11423702,100140.0,100130.0,0.430123]
[1734083949316,0.11423702,100140.0,100130.0,0.24010618]
[1734083949521,0.17732517,100140.0,100130.0,0.011]
[1734083949728,0.27719035,100140.0,100130.0,0.011]
[1734083950425,0.2141022,100140.0,100130.0,0.011]
[1734083951511,0.27719035,100140.0,100130.0,0.011]
[1734083953821,0.2141022,100140.0,100130.0,0.12402015]
[1734083954721,0.303809,100140.0,100130.0,0.12402015]
[1734083954926,0.303809,100140.0,100130.0,0.060932]
[1734083955315,0.303809,100140.0,100130.0,0.24010818]
[1734083958222,0.42341807,100140.0,100130.0,0.24010818]
[1734083959230,0.42341807,100140.0,100130.0,0.47927778]
[1734083959424,0.78421807,100140.0,100130.0,0.47927778]
[1734083959622,0.78421807,100140.0,100130.0,0.24010818]
[1734083960326,0.8440681,100140.0,100130.0,0.24010818]
[1734083961323,0.72445903,100140.0,100130.0,0.3001016]
[1734083962428,0.36365903,100140.0,100130.0,0.060932]
[1734083962831,0.36365903,100140.0,100130.0,0.35989401]
[1734083963927,0.36365903,100140.0,100130.0,0.060932]
[1734083964331,0.36365903,100140.0,100130.0,0.35989401]
[1734083964729,0.36365903,100140.0,100130.0,0.66542816]
[1734083964933,0.36365903,100140.0,100130.0,0.66562593]
[1734083965135,0.36365903,100140.0,100130.0,0.35989401]
[1734083965327,0.36365903,100140.0,100130.0,0.66539715]
[1734083965532,0.54312722,100140.0,100130.0,0.9048666]
[1734083965832,0.36365903,100140.0,100130.0,0.9048666]
[1734083966431,0.36365903,100140.0,100130.0,0.90486024]
[1734083966731,0.36365903,100140.0,100130.0,0.66539715]
[1734083966932,0.36365903,100140.0,100130.0,0.90524414]
[1734083967728,0.2007057,100140.0,100130.0,0.72886506]
[1734083967927,0.32050202,100140.0,100130.0,0.72886506]
[1734083968432,0.32050202,100140.0,100130.0,1.09923335]
[1734083968633,0.32050202,100140.0,100130.0,1.45798776]
[1734083969333,0.32050202,100140.0,100130.0,1.09923335]
[1734083969532,0.17094519,100140.0,100130.0,1.09923335]
[1734083969728,0.17094519,100140.0,100130.0,0.79335045]
[1734083970031,0.32050202,100140.0,100130.0,1.45764146]
[1734083970230,0.32050202,100140.0,100130.0,1.48774146]
[1734083970628,0.17094519,100140.0,100130.0,1.48774146]
[1734083971630,0.17094519,100140.0,100130.0,1.18220486]
[1734083971832,0.32050202,100140.0,100130.0,1.48771786]
[1734083972336,0.17094519,100140.0,100130.0,1.48771786]
[1734083972933,0.29712149,100140.0,100130.0,1.41506142]
[1734083973135,0.36365903,100140.0,100130.0,1.02620701]
[1734083973433,0.48343878,100140.0,100130.0,1.02620701]
[1734083980745,0.48343878,100140.0,100130.0,1.03020238]
[1734083982242,0.48343878,100140.0,100130.0,0.66940238]
[1734083982442,0.48343878,100140.0,100130.0,1.03020238]
[1734083983339,0.48343878,100140.0,100130.0,0.66940238]
[1734083983540,0.48343878,100140.0,100130.0,1.03020238]
[1734083983939,0.48343878,100140.0,100130.0,0.66940238]
[1734083984134,0.48343878,100140.0,100130.0,1.03020238]
[1734083984538,0.84423878,100140.0,100130.0,0.66940238]
[1734083984744,0.96701537,100140.0,100130.0,0.43013143]
[1734083984940,0.81745854,100140.0,100130.0,0.43013143]
[1734083986638,0.81745854,100140.0,100130.0,0.19063043]
[1734083987650,0.54325206,100140.0,100130.0,0.54315158]
[1734083987851,0.36378387,100140.0,100130.0,0.48006343]
[1734083988038,0.36378387,100140.0,100130.0,0.300433]
[1734083988450,0.36378387,100140.0,100130.0,0.47996876]
[1734083988949,0.36378387,100140.0,100130.0,0.43003676]
[1734083993265,0.54325206,100140.0,100130.0,0.43003676]
[1734083996261,0.36378387,100140.0,100130.0,0.4394951]
[1734083996570,0.54325206,100140.0,100130.0,0.4394951]
[1734083997268,0.48349801,100140.0,100130.0,0.42999085]
[1734083997567,0.48349801,100140.0,100130.0,0.85953154]
[1734083997771,0.48349801,100140.0,100130.0,0.54946301]
[1734083998164,0.48349801,100140.0,100130.0,0.42999451]
[1734083998469,0.48349801,100140.0,100130.0,0.42999388]
[1734083999063,0.48349801,100140.0,100130.0,0.54946301]
[1734083999764,0.48351113,100140.0,100130.0,0.43001365]
[1734084000167,0.48351113,100140.0,100130.0,0.54946301]
[1734084000364,0.72458387,100140.0,100130.0,0.43001483]
[1734084000562,0.36378387,100140.0,100130.0,0.43001483]
[1734084000767,0.48351511,100140.0,100130.0,0.54946301]
[1734084000966,0.42042642,100140.0,100130.0,0.97267986]
[1734084001167,0.32056124,100140.0,100130.0,1.00357986]
[1734084001566,0.38364939,100140.0,100130.0,0.94049171]
[1734084001759,0.38364939,100140.0,100130.0,0.89055971]
[1734084001958,0.90740826,100140.0,100130.0,0.58036301]
[1734084002167,0.96714021,100140.0,100130.0,0.46091269]
[1734084002870,0.90405206,100140.0,100130.0,0.46091269]
[1734084003863,0.54325206,100140.0,100130.0,0.46091269]
[1734084004068,0.36378387,100140.0,100130.0,0.46091269]
[1734084004273,0.36378387,100140.0,100130.0,0.281401]
[1734084006864,0.30069572,100140.0,100130.0,0.88952821]
[1734084007176,0.32058239,100140.0,100130.0,1.00254836]
[1734084007871,0.32058239,100140.0,100130.0,0.93946021]
[1734084009070,0.32058239,100140.0,100130.0,0.69995921]
[1734084009272,0.32058239,100140.0,100130.0,0.93928957]
[1734084009463,0.32058239,100140.0,100130.0,0.69995921]
[1734084009670,0.32058239,100140.0,100130.0,0.76304736]
[1734084010069,0.32058239,100140.0,100130.0,1.12384736]
[1734084010273,0.17090072,100140.0,100130.0,1.12384736]
[1734084010478,0.2607066,100140.0,100130.0,1.12384736]
[1734084010777,0.14095472,100140.0,100130.0,1.18363976]
[1734084010974,0.14095472,100140.0,100130.0,1.54925857]
[1734084011164,0.14095472,100140.0,100130.0,1.18363976]
[1734084011578,0.14095472,100140.0,100130.0,1.48261645]
[1734084011877,0.26070657,100140.0,100130.0,1.48262436]
[1734084013371,0.09102772,100140.0,100130.0,1.48262436]
[1734084013667,0.00122187,100140.0,100130.0,1.61257429]
[1734084013872,0.2594827,100150.0,100140.0,0.049927]
[1734084014074,0.2594827,100150.0,100140.0,1.41475673]
[1734084014271,0.2594827,100150.0,100140.0,1.17565085]
[1734084015069,0.2594827,100150.0,100140.0,1.17765085]
[1734084015267,0.2594827,100150.0,100140.0,1.41662642]
[1734084015474,0.2594827,100150.0,100140.0,1.41962642]
[1734084016182,0.13973085,100150.0,100140.0,1.41962642]
[1734084017184,0.13973085,100150.0,100140.0,1.45062642]
[1734084017982,0.13973085,100150.0,100140.0,1.38753827]
[1734084019976,0.13973085,100150.0,100140.0,1.39723177]
[1734084020179,0.13973085,100150.0,100140.0,1.39395124]
[1734084020690,0.202819,100150.0,100140.0,1.39395124]
[1734084020983,0.13973085,100150.0,100140.0,1.08806657]
[1734084021288,0.13973085,100150.0,100140.0,0.78918422]
[1734084021478,0.13973085,100150.0,100140.0,0.42838422]
[1734084021680,0.13973085,100150.0,100140.0,0.78918422]
[1734084024300,0.13973085,100150.0,100140.0,0.42838422]
[1734084024678,0.13973085,100150.0,100140.0,0.78918422]
[1734084024881,0.13973085,100150.0,100140.0,0.42838422]
[1734084025190,0.13973085,100150.0,100140.0,0.78918422]
[1734084025975,0.2594827,100150.0,100140.0,0.60751521]
[1734084026182,0.32257085,100150.0,100140.0,0.60751521]
[1734084026787,0.32257085,100150.0,100140.0,0.59782171]
[1734084027187,0.32257085,100150.0,100140.0,0.53473356]
[1734084027388,0.32257085,100150.0,100140.0,0.59782171]
[1734084027587,0.232765,100150.0,100140.0,0.59782171]
[1734084027783,0.16967685,100150.0,100140.0,0.59782171]
[1734084028190,0.25936383,100150.0,100140.0,0.59782171]
[1734084028381,0.16967685,100150.0,100140.0,0.59782171]
[1734084028890,0.232765,100150.0,100140.0,0.59782171]
[1734084029079,0.16967685,100150.0,100140.0,0.59782171]
[1734084029285,0.25937164,100150.0,100140.0,0.59782171]
[1734084032797,0.16967685,100150.0,100140.0,0.59782171]
[1734084033700,0.25940442,100150.0,100140.0,0.59782171]
[1734084033886,0.25940442,100150.0,100140.0,0.41869072]
[1734084034086,0.25940442,100150.0,100140.0,0.59793966]
[1734084034291,0.16967685,100150.0,100140.0,0.41869072]
[1734084034685,0.25941576,100150.0,100140.0,0.71757307]
[1734084035295,0.16967685,100150.0,100140.0,1.02406428]
[1734084035895,0.25942915,100150.0,100140.0,1.02406428]
[1734084036393,0.31935852,100150.0,100140.0,1.02406428]
[1734084038502,0.31935852,100150.0,100140.0,0.96097613]
[1734084038801,0.31935852,100150.0,100140.0,1.02406428]
[1734084039101,0.56040667,100150.0,100140.0,0.59808957]
[1734084039400,0.56040667,100150.0,100140.0,0.71757307]
[1734084039590,0.19960667,100150.0,100140.0,0.71757307]
[1734084039792,0.31934935,100150.0,100140.0,1.0247697]
[1734084041492,0.31934935,100150.0,100140.0,0.78579413]
[1734084043693,0.31934935,100150.0,100140.0,1.02514414]
[1734084044791,0.31934935,100150.0,100140.0,0.78579413]
[1734084046804,0.31937945,100150.0,100140.0,0.78579413]
[1734084047194,0.19960667,100150.0,100140.0,0.78579413]
[1734084047600,0.31938371,100150.0,100140.0,0.78579413]
[1734084048196,0.19960667,100150.0,100140.0,0.78579413]
[1734084049500,0.31939359,100150.0,100140.0,0.78579413]
[1734084049695,0.19960667,100150.0,100140.0,0.78579413]
[1734084054317,0.19960667,100150.0,100140.0,1.14659413]
[1734084057298,0.19960667,100150.0,100140.0,1.50534854]
[1734084057707,0.19960667,100150.0,100140.0,1.56843669]
[1734084058114,0.19960667,100150.0,100140.0,1.50534854]
[1734084058315,0.19960667,100150.0,100140.0,1.56843669]
[1734084058514,0.19960667,100150.0,100140.0,1.50534854]
[1734084059812,0.31942628,100150.0,100140.0,1.50534854]
[1734084060510,0.31942628,100150.0,100140.0,1.56843669]
[1734084061118,0.31942628,100150.0,100140.0,1.50534854]
[1734084063911,0.31942628,100150.0,100140.0,1.44226039]
[1734084064110,0.31942628,100150.0,100140.0,1.08146039]
[1734084064311,0.19960667,100150.0,100140.0,0.72270598]
[1734084064520,0.19960667,100150.0,100140.0,0.78579413]
[1734084067814,0.19960667,100150.0,100140.0,0.78580626]
[1734084068014,0.26269482,100150.0,100140.0,0.67279111]
[1734084068216,0.44216301,100150.0,100140.0,0.73587926]
[1734084068509,0.72335002,100150.0,100140.0,0.8505968]
[1734084068821,0.81913654,100150.0,100140.0,0.42414964]
[1734084069125,0.91175861,100150.0,100140.0,0.18464395]
[1734084069315,0.91175861,100150.0,100140.0,0.005]
[1734084069915,0.049927,100140.0,100130.0,0.41914964]
[1734084070114,0.86625316,100140.0,100130.0,0.41914964]
[1734084070512,0.96610836,100140.0,100130.0,0.41914964]
[1734084071024,0.96610836,100140.0,100130.0,0.42314964]
[1734084071211,0.96610836,100140.0,100130.0,0.43014964]
[1734084071408,0.96610836,100140.0,100130.0,0.19064395]
[1734084072514,0.84890388,100140.0,100130.0,0.011]
[1734084073717,0.85390388,100140.0,100130.0,0.008]
[1734084074719,0.86190388,100140.0,100130.0,0.002]
[1734084074916,1.22270388,100140.0,100130.0,0.002]
[1734084075118,1.2320901,100140.0,100130.0,0.002]
[1734084077528,1.3813933,100140.0,100130.0,0.002]
[1734084078725,0.6597933,100140.0,100130.0,0.002]
[1734084078921,1.3813933,100140.0,100130.0,0.002]
[1734084079121,0.6597933,100140.0,100130.0,0.002]
[1734084079423,1.3813933,100140.0,100130.0,0.002]
[1734084080422,1.20174792,100140.0,100130.0,0.002]
[1734084083126,1.3813933,100140.0,100130.0,0.002]
[1734084083331,1.20174792,100140.0,100130.0,0.002]
[1734084085934,1.22162001,100140.0,100130.0,0.002]
[1734084087924,0.50002001,100140.0,100130.0,0.002]
[1734084088126,1.22162001,100140.0,100130.0,0.002]
[1734084089434,0.50002001,100140.0,100130.0,0.002]
[1734084089641,1.22162001,100140.0,100130.0,0.002]
[1734084089931,1.40126539,100140.0,100130.0,0.002]
[1734084093438,1.25196219,100140.0,100130.0,0.002]
[1734084097945,1.15622182,100140.0,100130.0,0.002]
[1734084098139,1.15622182,100140.0,100130.0,0.0338]
[1734084098841,1.21930997,100140.0,100130.0,0.0338]
[1734084099440,1.03981681,100140.0,100130.0,0.002]
[1734084099748,1.21936063,100140.0,100130.0,0.002]
[1734084100046,1.03981681,100140.0,100130.0,0.002]
[1734084100431,1.24881892,100140.0,100130.0,0.002]
[1734084102438,1.24881892,100140.0,100130.0,0.18164395]
[1734084102838,0.88801892,100140.0,100130.0,0.18164395]
[1734084109341,0.52721892,100140.0,100130.0,0.18164395]
[1734084109534,0.88801892,100140.0,100130.0,0.18164395]
[1734084113651,0.52721892,100140.0,100130.0,0.18164395]
[1734084113851,2.38801892,100140.0,100130.0,0.18164395]
[1734084117749,2.02721892,100140.0,100130.0,0.18164395]
[1734084117959,2.38801892,100140.0,100130.0,0.18164395]
[1734084118952,2.02721892,100140.0,100130.0,0.18164395]
[1734084119644,2.38801892,100140.0,100130.0,0.18164395]
[1734084119941,2.02721892,100140.0,100130.0,0.18164395]
[1734084120349,2.38801892,100140.0,100130.0,0.18164395]
[1734084128852,2.02721892,100140.0,100130.0,0.18164395]
[1734084129052,2.38801892,100140.0,100130.0,0.18164395]
[1734084129253,2.02721892,100140.0,100130.0,0.18164395]
[1734084129457,2.38801892,100140.0,100130.0,0.18164395]
[1734084130551,2.02721892,100140.0,100130.0,0.18164395]
[1734084130758,2.38801892,100140.0,100130.0,0.18164395]
[1734084135757,2.02721892,100140.0,100130.0,0.18164395]
[1734084135956,2.26184262,100140.0,100130.0,0.18164395]
[1734084136461,2.38801892,100140.0,100130.0,0.18164395]
[1734084137968,2.17901681,100140.0,100130.0,0.18164395]